bitfinex/quotes_ETHUSD_20250905
["timestamp","ask_amount","ask_price","bid_price","bid_amount"]
[1757085192326,1.72744,4289.0,4288.9,14.5]
[1757085192550,1.5704,4289.0,4288.9,14.5]
[1757085193448,1.5704,4289.0,4288.9,18.701]
[1757085194250,0.8474,4289.5,4288.9,18.701]
[1757085194449,0.2909,4289.0,4288.9,18.701]
[1757085194650,1.1383,4289.0,4288.9,18.701]
[1757085195064,1.1383,4289.0,4288.9,24.03260017]
[1757085195271,1.1383,4289.0,4288.9,7.201]
[1757085195770,0.2909,4289.0,4288.9,7.201]
[1757085195923,0.2909,4289.0,4288.9,9.53260017]
[1757085196127,0.8474,4289.9,4289.1,2.33145366]
[1757085196334,3.17848594,4289.9,4289.3,3.0]
[1757085196563,3.12270827,4290.6,4288.8,0.025]
[1757085196564,0.2909,4289.4,4288.8,0.025]
[1757085196768,1.5704,4289.4,4288.9,4.201]
[1757085197065,1.2795,4289.3,4288.9,4.201]
[1757085197365,0.116,4289.6,4289.0,14.5]
[1757085197664,0.116,4289.6,4289.1,7.22431491]
[1757085197869,0.116,4290.0,4289.3,0.116]
[1757085198037,0.116,4290.0,4289.9,2.33105666]
[1757085198228,0.001,4290.7,4289.9,2.33105666]
[1757085198229,0.8484,4290.7,4290.5,2.33069796]
[1757085198429,0.9644,4290.7,4290.6,7.2]
[1757085198679,0.9644,4290.7,4290.6,9.53067636]
[1757085198680,0.117,4290.7,4290.6,9.53067636]
[1757085198829,0.001,4290.7,4290.6,9.81657636]
[1757085199026,0.001,4290.7,4290.6,5.73257636]
[1757085199271,0.001,4290.7,4290.6,11.88890798]
[1757085199946,0.001,4290.7,4290.6,12.68090798]
[1757085200533,0.8474,4292.4,4291.7,2.33007898]
[1757085200754,0.8474,4292.4,4291.7,6.53007898]
[1757085201360,0.8474,4292.4,4291.7,2.33007898]
[1757085201671,0.0242,4292.8,4291.7,10.58100146]
[1757085201852,0.0242,4292.8,4291.7,11.01260146]
[1757085202166,0.0242,4292.8,4291.7,11.84700146]
[1757085202369,0.0242,4292.8,4291.7,10.58100146]
[1757085203080,0.0242,4292.8,4292.7,2.32953618]
[1757085203243,0.0242,4292.8,4292.7,8.4784898]
[1757085203448,0.0242,4292.8,4292.7,11.4774898]
[1757085203833,0.4571,4293.8,4292.7,11.4774898]
[1757085203834,0.025,4293.8,4293.7,2.32899364]
[1757085204256,0.025,4293.8,4293.7,9.52699364]
[1757085204957,0.025,4293.8,4293.7,3.0]
[1757085205360,1.5954,4293.8,4293.7,7.198]
[1757085205556,1.1633,4293.8,4293.7,9.52699364]
[1757085205880,1.1633,4293.8,4293.7,7.198]
[1757085206192,1.1633,4293.8,4293.7,3.0]
[1757085206466,1.5954,4293.8,4293.7,3.0]
[1757085206670,1.5954,4293.8,4293.7,7.197]
[1757085206833,1.5954,4293.8,4293.7,5.32899364]
[1757085207032,1.1633,4293.8,4293.7,7.197]
[1757085207233,1.5954,4293.8,4293.7,3.0]
[1757085207547,1.5954,4293.8,4292.7,1.94995362]
[1757085207749,1.5954,4293.8,4293.0,2.32932494]
[1757085207949,1.5954,4293.8,4292.8,0.19499536]
[1757085207950,1.5954,4293.8,4293.1,7.197]
[1757085208157,1.5954,4293.8,4293.2,2.32926488]
[1757085208351,0.8474,4293.7,4293.1,3.0]
[1757085208551,0.8474,4293.7,4293.3,3.0]
[1757085208552,1.2795,4293.7,4293.3,3.0]
[1757085208744,0.2909,4293.4,4293.3,3.0]
[1757085208945,1.5704,4293.4,4292.9,2.3294129]
[1757085209142,0.025,4293.8,4292.7,1.717]
[1757085209467,0.116,4293.6,4292.9,2.44539627]
[1757085209634,0.116,4293.6,4293.1,5.3293028]
[1757085209835,0.116,4293.6,4293.1,3.0]
[1757085210036,1.2795,4293.5,4293.1,3.0]
[1757085210232,0.2909,4293.2,4292.9,0.116]
[1757085210438,0.2909,4293.2,4292.8,3.0]
[1757085210739,0.025,4293.8,4293.4,2.32911287]
[1757085210937,0.025,4293.8,4293.6,5.32899985]
[1757085211139,0.141,4293.8,4293.7,4.196]
[1757085211672,1.7114,4293.8,4293.7,4.196]
[1757085211874,0.001,4293.4,4291.8,0.025]
[1757085212167,1.2795,4293.3,4291.9,4.195]
[1757085212368,0.8474,4293.3,4292.0,3.0]
[1757085212583,0.001,4293.4,4293.2,2.32923351]
[1757085212877,0.001,4293.4,4293.3,9.52421063]
[1757085214382,0.001,4293.4,4293.3,9.81011063]
[1757085215260,0.001,4293.4,4293.3,11.45564928]
[1757085216080,0.001,4293.4,4293.3,12.28504928]
[1757085216446,0.0002,4293.4,4293.3,12.28504928]
[1757085217081,0.0002,4293.4,4293.3,8.09004928]
[1757085217263,0.0002,4293.4,4293.3,11.02304928]
[1757085217460,0.0002,4293.4,4293.3,11.45464928]
[1757085218684,0.0002,4293.4,4293.3,12.28404928]
[1757085218858,1e-08,4293.8,4293.7,2.32899364]
[1757085219054,1e-08,4293.8,4293.7,27.07576767]
[1757085219249,1e-08,4293.8,4293.7,28.62637774]
[1757085219876,1e-08,4293.8,4293.7,28.79981033]
[1757085220082,0.30810001,4295.4,4294.9,2.32830955]
[1757085220258,0.8272,4295.3,4295.1,3.0]
[1757085220453,1.1261,4295.2,4295.0,2.32828018]
[1757085220658,0.2989,4295.2,4295.1,7.193]
[1757085220985,0.2989,4295.2,4295.1,9.52123449]
[1757085221367,0.8272,4295.7,4295.1,4.193]
[1757085221568,0.8272,4295.7,4295.3,2.32811023]
[1757085221884,0.8272,4295.7,4295.6,2.32796349]
[1757085222068,0.8272,4295.7,4295.6,6.52096349]
[1757085222270,1.5906,4295.7,4295.6,4.193]
[1757085222477,1.1261,4295.7,4295.6,4.193]
[1757085222672,0.792,4295.6,4294.4,4.193]
[1757085222866,2.0837,4295.6,4294.5,2.32854452]
[1757085223065,0.2989,4294.6,4294.5,3.0]
[1757085223262,1.5906,4294.6,4294.5,4.192]
[1757085223965,1.5906,4294.6,4293.8,1.716]
[1757085224161,1.5406,4294.6,4293.9,4.192]
[1757085224567,0.7134,4294.6,4293.8,1.716]
[1757085224878,1.2917,4294.5,4294.0,3.0]
[1757085225066,0.2989,4294.1,4294.0,3.0]
[1757085225261,1.1261,4294.1,4294.0,3.0]
[1757085226058,0.4645,4294.4,4294.0,3.0]
[1757085226059,0.4645,4294.4,4294.0,5.32883092]
[1757085226267,1.2917,4294.3,4294.2,3.0]
[1757085226496,1.5906,4294.3,4294.2,4.192]
[1757085226662,1.5906,4294.3,4293.8,1.716]
[1757085226858,1.5906,4294.3,4293.9,4.191]
[1757085226859,1.2917,4294.2,4293.9,4.191]
[1757085227059,0.2989,4294.0,4293.9,4.191]
[1757085227282,0.2989,4294.0,4293.3,2.32920797]
[1757085227283,1.5906,4294.0,4293.3,2.32920797]
[1757085227694,1.5906,4294.0,4293.8,0.025]
[1757085227990,0.8272,4294.4,4293.9,4.191]
[1757085228171,0.8272,4294.3,4294.0,3.0]
[1757085228371,0.4645,4294.7,4294.0,5.32881]
[1757085228577,0.2989,4294.1,4294.0,3.0]
[1757085228773,0.7634,4294.1,4293.8,0.025]
[1757085228977,1.2917,4294.0,4293.9,3.686]
[1757085229174,1.1261,4294.0,4293.9,3.686]
[1757085229377,0.8272,4294.4,4293.9,3.686]
[1757085229579,0.8272,4294.4,4293.8,0.025]
[1757085229580,0.2989,4294.0,4293.8,0.025]
[1757085229969,0.8272,4294.0,4293.8,0.025]
[1757085230308,0.8272,4294.5,4293.9,3.0]
[1757085230478,0.8272,4294.5,4293.8,0.025]
[1757085230669,0.2989,4294.0,4293.9,4.191]
[1757085230869,1.5906,4294.0,4293.8,0.025]
[1757085231100,0.2989,4294.0,4293.9,7.191]
[1757085231297,0.2989,4294.0,4293.9,3.0]
[1757085231670,1.1261,4294.0,4293.9,3.0]
[1757085231867,1.74966,4294.0,4293.8,0.025]
[1757085232100,1.2917,4293.9,4293.8,0.025]
[1757085232473,1.5906,4293.9,4293.8,0.025]
[1757085233384,0.116,4294.1,4293.8,0.7695]
[1757085233585,0.116,4294.1,4293.9,7.191]
[1757085233784,0.116,4294.1,4293.9,3.0]
[1757085233984,0.116,4294.1,4293.9,7.19]
[1757085233985,0.2989,4294.0,4293.9,7.19]
[1757085234179,1.1261,4294.0,4293.9,7.19]
[1757085234401,0.2989,4294.0,4293.9,7.19]
[1757085234704,0.116,4294.1,4293.9,7.19]
[1757085235109,0.001,4294.6,4294.0,0.3061]
[1757085235304,0.116,4294.2,4294.0,3.3061]
[1757085235485,0.001,4294.6,4294.5,2.32855978]
[1757085235681,0.001,4294.6,4294.5,9.51855978]
[1757085235884,0.001,4294.6,4294.5,6.07305978]
[1757085236116,0.001,4294.6,4294.5,10.26305978]
[1757085236279,0.001,4294.6,4294.5,11.52222803]
[1757085237215,0.001,4294.6,4294.5,11.08382803]
[1757085237378,0.001,4294.6,4294.5,9.51855978]
[1757085237712,0.2999,4294.6,4294.5,3.0]
[1757085237878,1.1271,4294.6,4294.5,7.19]
[1757085238280,1.5916,4294.6,4294.5,7.19]
[1757085238706,1.5916,4294.6,4293.9,1.716]
[1757085239010,1.5916,4294.6,4294.0,4.189]
[1757085239182,1.5916,4294.6,4294.1,3.0]
[1757085239805,0.001,4294.6,4294.1,3.0]
[1757085240012,0.001,4294.6,4294.2,2.32872166]
[1757085240207,0.8272,4294.5,4294.3,4.189]
[1757085240412,0.7634,4294.4,4294.3,4.189]
[1757085240609,1.5906,4294.4,4294.3,4.189]
[1757085241085,0.001,4294.6,4294.3,4.4951]
[1757085241283,0.2989,4294.4,4293.9,1.716]
[1757085241480,0.2989,4294.4,4294.1,3.0]
[1757085241481,1.2917,4294.3,4294.1,3.0]
[1757085241784,1.5906,4294.2,4293.9,3.0]
[1757085241992,1.2917,4294.1,4293.8,0.025]
[1757085242514,1.2927,4294.6,4293.8,0.025]
[1757085242722,1.2927,4294.6,4293.8,4.213]
[1757085242922,0.001,4294.6,4293.9,3.4384]
[1757085243114,0.001,4294.6,4294.2,2.32869186]
[1757085243309,0.001,4294.6,4294.3,4.188]
[1757085243511,0.001,4294.6,4294.5,0.3061]
[1757085243821,0.001,4294.6,4294.5,9.82265978]
[1757085244221,0.0002,4294.6,4294.5,7.188]
[1757085244397,1.1263,4294.6,4294.5,4.188]
[1757085244602,1.5908,4294.6,4294.5,4.188]
[1757085244803,0.0002,4294.6,4294.5,4.188]
[1757085244998,0.0002,4294.6,4294.5,7.9129]
[1757085245715,0.0002,4294.6,4294.0,0.116]
[1757085246026,0.0002,4294.6,4294.2,3.0]
[1757085246602,0.0002,4294.6,4294.5,0.3061]
[1757085246807,0.0002,4294.6,4294.5,4.4941]
[1757085247007,0.0002,4294.6,4294.5,7.4941]
[1757085247426,0.0002,4294.6,4294.5,9.82265978]
[1757085247628,0.0002,4294.6,4294.5,7.4941]
[1757085247837,0.2991,4294.6,4294.5,1.258]
[1757085248007,0.792,4294.3,4293.3,0.004]
[1757085248336,3.0,4294.1,4293.3,0.004]
[1757085248518,2.32901411,4293.7,4293.3,0.004]
[1757085248835,0.792,4294.0,4293.3,0.004]
[1757085248836,0.792,4293.8,4293.3,0.004]
[1757085249041,0.2989,4293.4,4293.3,0.004]
[1757085249543,3.12082571,4294.1,4293.3,0.004]
[1757085249825,1.0715614,4294.2,4293.3,0.2954]
[1757085249826,0.4595,4294.2,4293.3,0.2954]
[1757085250027,2.32875353,4294.2,4293.3,0.2954]
[1757085250230,0.4595,4294.5,4293.3,0.2954]
[1757085250405,0.304,4293.4,4293.3,0.004]
[1757085250810,0.7635,4293.4,4293.3,0.004]
[1757085251400,0.304,4293.4,4293.3,0.004]
[1757085251602,0.4595,4294.0,4293.3,0.004]
[1757085251801,0.58465,4294.0,4293.3,0.004]
[1757085252230,2.91350129,4294.0,4293.3,0.004]
[1757085252428,0.58465,4294.0,4293.3,0.004]
[1757085252628,0.4595,4294.0,4293.3,0.004]
[1757085252832,0.4595,4294.3,4293.3,0.004]
[1757085253134,2.32862379,4294.4,4293.3,0.004]
[1757085253302,0.304,4293.4,4293.3,0.004]
[1757085253503,0.792,4294.1,4293.3,0.004]
[1757085253840,2.5324758,4294.0,4293.3,0.004]
[1757085254138,0.20361,4294.0,4293.3,0.004]
[1757085254307,0.4595,4294.2,4293.3,0.004]
[1757085254508,2.78822937,4294.2,4293.3,0.004]
[1757085254834,5.9032,4294.6,4293.4,2.32915637]
[1757085254999,0.792,4294.5,4293.6,2.32901823]
[1757085255537,0.0002,4294.6,4294.5,2.32855978]
[1757085255733,0.0002,4294.6,4294.4,2.32860307]
[1757085255926,0.0002,4294.6,4294.5,7.187]
[1757085256126,0.0002,4294.6,4294.1,3.0]
[1757085256436,0.116,4294.4,4294.1,3.0]
[1757085256641,0.116,4294.4,4294.3,3.0]
[1757085256935,0.116,4294.4,4294.2,14.5]
[1757085257603,0.304,4294.3,4294.2,14.5]
[1757085257803,0.7635,4294.3,4294.2,14.5]
[1757085258030,0.62483313,4294.3,4294.2,14.5]
[1757085258226,0.304,4294.3,4294.2,14.5]
[1757085258407,0.116,4294.4,4293.6,4.186]
[1757085258608,0.0002,4294.6,4293.6,4.186]
[1757085258609,0.116,4293.7,4293.6,4.186]
[1757085258938,0.116,4294.0,4293.6,19.7837]
[1757085259135,0.116,4294.0,4293.9,2.32888516]
[1757085259513,0.116,4294.0,4293.9,6.89388516]
[1757085260609,0.116,4294.0,4293.9,11.07988516]
[1757085260811,0.116,4294.0,4293.9,3.2914]
[1757085261267,0.116,4294.0,4293.9,10.32118516]
[1757085261412,0.116,4294.0,4293.9,7.9923]
[1757085261613,0.116,4294.0,4293.9,10.32118516]
[1757085261815,0.116,4294.0,4293.9,10.61258516]
[1757085262008,0.116,4294.0,4293.9,11.07988516]
[1757085262245,0.116,4294.0,4293.9,3.0]
[1757085262450,0.7635,4294.0,4293.3,0.004]
[1757085262657,0.30922593,4293.9,4293.3,0.004]
[1757085262950,0.792,4294.5,4293.3,16.83318139]
[1757085263150,0.0002,4294.6,4293.8,2.32890544]
[1757085263305,0.0002,4294.6,4293.9,6.51388164]
[1757085263511,0.0002,4294.6,4293.6,2.32900722]
[1757085263512,0.0002,4294.6,4293.8,2.32891344]
[1757085263705,0.0002,4294.6,4293.5,3.0]
[1757085263951,0.0002,4294.6,4293.6,4.185]
[1757085263952,0.4597,4294.6,4293.6,4.185]
[1757085264121,2.78822982,4294.6,4293.6,4.185]
[1757085264322,0.28132298,4294.5,4293.8,2.32889259]
[1757085264526,0.28132298,4294.5,4293.7,2.32896075]
[1757085264737,0.28132298,4294.5,4293.6,4.185]
[1757085264937,0.4597,4294.6,4293.7,3.0]
[1757085265161,0.4597,4294.6,4293.8,2.3289382]
[1757085265373,0.4597,4294.6,4293.4,3.13542212]
[1757085265678,2.32857056,4294.5,4293.5,2.32907836]
[1757085265878,0.792,4294.5,4293.4,3.8063]
[1757085266073,3.12064078,4294.4,4293.6,4.185]
[1757085266364,3.12056338,4294.5,4293.5,2.3290879]
[1757085266531,0.792,4294.5,4293.6,4.185]
[1757085266732,0.4597,4294.6,4293.8,2.32893523]
[1757085266976,0.4597,4294.6,4293.4,3.8063]
[1757085267167,3.14799857,4294.6,4293.6,2.32902913]
[1757085267333,3.14799857,4294.6,4293.5,4.6523]
[1757085267334,0.81947351,4294.6,4293.5,4.6523]
[1757085267536,0.0002,4294.6,4293.7,3.0]
[1757085267765,0.0002,4294.6,4293.8,0.8063]
[1757085267966,0.0002,4294.6,4293.9,6.51384314]
[1757085268178,0.0002,4294.6,4294.0,4.185]
[1757085268377,0.4597,4294.6,4294.0,4.185]
[1757085268934,0.28131012,4294.5,4294.0,4.185]
[1757085269162,0.304,4294.1,4293.9,4.184]
[1757085269347,2.32892342,4293.9,4293.6,4.184]
[1757085269549,0.304,4293.7,4293.3,0.004]
[1757085269952,0.7635,4293.7,4293.3,0.004]
[1757085270675,0.304,4293.7,4293.3,0.004]
[1757085270973,0.4595,4293.6,4293.3,0.004]
[1757085271289,2.32915637,4293.4,4293.3,0.004]
[1757085271468,2.63315637,4293.4,4293.3,0.004]
[1757085271637,3.09265637,4293.4,4293.3,0.004]
[1757085271836,3.09185637,4293.4,4293.3,0.004]
[1757085272062,3.71240783,4293.4,4293.3,0.004]
[1757085272271,4.50440783,4293.4,4293.3,0.004]
[1757085272468,5.28900783,4293.4,4293.3,0.004]
[1757085274271,8.28900783,4293.4,4293.3,0.004]
[1757085275456,8.28900783,4293.4,4293.3,1e-08]
[1757085275789,8.28900783,4293.4,4292.4,0.004]
[1757085275790,6.12164472,4292.5,4292.4,0.004]
[1757085276002,10.72632988,4292.5,4292.4,0.004]
[1757085276187,12.27442988,4292.5,4292.4,0.004]
[1757085276354,8.48982988,4292.5,4292.4,0.004]
[1757085276555,2.32977991,4292.3,4291.8,0.025]
[1757085276870,3.1219704,4291.9,4291.8,0.025]
[1757085277071,7.89128052,4291.9,4291.8,0.025]
[1757085277604,8.35078052,4291.9,4291.8,0.025]
[1757085278286,9.13538052,4291.9,4291.8,0.025]
[1757085278492,7.89128052,4291.9,4291.8,0.025]
[1757085278990,7.6099704,4291.9,4291.8,0.025]
[1757085279190,4.976,4291.9,4291.8,0.025]
[1757085279496,7.3059704,4291.9,4291.8,0.025]
[1757085279659,4.976,4291.9,4291.8,0.025]
[1757085279855,7.3059704,4291.9,4291.8,0.025]
[1757085280184,8.34846744,4291.9,4291.8,0.025]
[1757085280356,8.80646744,4291.9,4291.8,0.025]
[1757085280887,9.58646744,4291.9,4291.8,0.025]
[1757085281094,8.34846744,4291.9,4291.8,0.025]
[1757085281271,5.70659704,4291.9,4291.8,0.025]
[1757085281469,1.716,4292.3,4291.8,0.025]
[1757085281691,4.184,4292.5,4291.8,1.5937]
[1757085281853,0.458,4292.9,4291.9,0.8271]
[1757085282053,0.458,4292.8,4291.8,0.025]
[1757085282357,3.0,4293.0,4291.9,0.8271]
[1757085282556,2.32959159,4292.6,4291.9,0.8271]
[1757085282759,4.183,4292.5,4291.9,0.8271]
[1757085282999,4.183,4292.5,4292.4,0.3014]
[1757085283367,2.44574762,4292.4,4291.9,0.8271]
[1757085283698,4.183,4292.5,4291.9,0.8271]
[1757085283900,0.116,4291.9,4291.8,14.9652]
[1757085284056,0.116,4291.9,4291.8,15.2666]
[1757085284256,0.116,4291.9,4291.8,14.8264]
[1757085284467,0.116,4291.9,4291.8,14.525]
[1757085284698,0.116,4291.9,4291.8,16.0937]
[1757085286158,0.116,4291.9,4291.8,18.42372469]
[1757085286357,0.116,4292.4,4291.9,2.3299704]
[1757085286553,0.116,4292.4,4292.3,0.3014]
[1757085286977,0.116,4292.4,4292.3,0.7416]
[1757085287180,0.116,4292.4,4292.3,1.1285]
[1757085287377,0.116,4292.4,4292.3,1.5687]
[1757085287975,0.116,4292.4,4292.3,1.1285]
[1757085288172,0.116,4292.4,4292.3,1.5687]
[1757085289061,0.458,4294.0,4292.6,2.3295409]
[1757085289367,0.458,4294.0,4292.3,2.11436734]
[1757085289368,0.458,4293.7,4292.4,0.8271]
[1757085289566,0.792,4293.4,4292.3,4.182]
[1757085289766,4.64,4293.3,4292.1,14.5]
[1757085289967,0.792,4292.9,4292.1,14.5]
[1757085290190,0.2042,4292.9,4292.1,14.5]
[1757085290394,2.3295516,4292.7,4292.1,14.5]
[1757085290690,2.32959757,4292.6,4292.1,14.5]
[1757085290890,2.32953618,4292.7,4292.1,14.5]
[1757085291064,3.12149802,4292.8,4292.1,14.5]
[1757085291262,0.2042,4292.9,4292.1,14.5]
[1757085291670,4.182,4293.3,4292.2,0.8271]
[1757085291874,2.32931914,4293.1,4292.2,1.2673]
[1757085292086,2.32940321,4293.0,4292.2,1.2673]
[1757085292293,0.792,4293.2,4292.2,1.2673]
[1757085292489,3.12127974,4293.2,4292.2,3.59707387]
[1757085292796,0.792,4293.2,4292.3,3.15680712]
[1757085292991,0.792,4293.2,4292.4,0.4402]
[1757085293293,0.792,4293.2,4292.4,14.9402]
[1757085293605,0.001,4292.9,4292.5,0.8271]
[1757085293808,0.001,4292.9,4292.4,14.5]
[1757085294004,2.32955169,4292.7,4292.1,3.8311]
[1757085294210,0.23402722,4292.9,4292.1,0.8311]
[1757085294381,0.793,4292.9,4292.1,0.8311]
[1757085294576,3.12243834,4292.9,4292.2,14.5]
[1757085294813,0.793,4292.9,4292.2,14.5]
[1757085295142,2.32962369,4292.6,4292.2,14.5]
[1757085295421,2.32954852,4292.7,4292.2,14.5]
[1757085295619,3.12243718,4292.9,4292.2,14.5]
[1757085295620,0.793,4292.9,4292.2,14.5]
[1757085295928,3.12245256,4292.9,4292.2,14.5]
[1757085296121,0.001,4292.9,4292.2,14.5]
[1757085296416,3.12243364,4292.9,4292.2,14.5]
[1757085296834,2.32949355,4292.8,4292.2,14.5]
[1757085296991,0.3119,4292.3,4292.1,0.004]
[1757085297186,2.64168471,4292.3,4292.1,0.004]
[1757085297522,3.57980755,4292.2,4292.1,0.004]
[1757085297725,0.792,4292.2,4292.1,0.004]
[1757085298025,3.69497826,4292.2,4292.1,0.004]
[1757085298184,4.00687826,4292.2,4292.1,0.004]
[1757085298384,1.36517071,4292.2,4292.1,0.004]
[1757085298587,2.32965325,4292.5,4292.1,0.004]
[1757085298834,0.792,4292.5,4292.1,1.1325]
[1757085299227,2.32948192,4292.8,4292.2,1.2673]
[1757085299426,2.32938786,4293.0,4292.2,1.2673]
[1757085299726,0.0002,4292.9,4292.2,1.2673]
[1757085300029,2.32963381,4292.9,4292.2,1.2673]
[1757085300184,2.32963381,4292.9,4292.3,14.5]
[1757085300185,2.3294859,4292.8,4292.3,14.5]
[1757085300485,0.0002,4292.9,4292.3,14.5]
[1757085300684,0.3119,4292.4,4292.3,14.5]
[1757085300920,3.1215797,4292.7,4292.3,14.5]
[1757085301122,3.1215797,4292.7,4292.3,0.3014]
[1757085301123,0.792,4292.7,4292.3,0.3014]
[1757085301330,0.0002,4292.9,4292.4,1.2673]
[1757085301518,0.0002,4292.9,4292.5,0.8271]
[1757085301888,2.32965484,4292.9,4292.5,0.8271]
[1757085302084,0.0002,4292.9,4292.8,0.3014]
[1757085302413,0.001,4293.4,4292.9,2.32942765]
[1757085302631,0.001,4293.4,4293.0,2.32934319]
[1757085302832,0.001,4293.4,4293.1,14.5]
[1757085303026,0.001,4293.4,4293.3,0.3014]
[1757085304027,0.001,4293.4,4293.3,1.1285]
[1757085304635,0.001,4293.4,4293.1,14.5]
[1757085305249,0.116,4293.1,4292.5,4.179]
[1757085305541,0.116,4292.7,4292.5,4.179]
[1757085305752,0.116,4292.7,4292.6,0.3014]
[1757085305913,0.116,4292.7,4292.5,0.8271]
[1757085306117,0.116,4292.7,4292.1,0.004]
[1757085306364,0.116,4292.2,4292.1,0.004]
[1757085306527,1.46446625,4292.2,4292.1,0.004]
[1757085306904,3.4823738,4292.2,4292.1,0.004]
[1757085307203,3.7942738,4292.2,4292.1,0.004]
[1757085307417,1.46446625,4292.2,4292.1,0.004]
[1757085307627,3.89170755,4292.2,4292.1,0.004]
[1757085307842,3.43370755,4292.2,4292.1,0.004]
[1757085308039,3.89170755,4292.2,4292.1,0.004]
[1757085308213,6.89170755,4292.2,4292.1,0.004]
[1757085308405,7.67170755,4292.2,4292.1,0.004]
[1757085308865,3.43370755,4292.2,4292.1,0.004]
[1757085309022,0.792,4292.9,4292.1,0.004]
[1757085309218,0.3001,4292.2,4292.1,0.004]
[1757085309416,2.62990755,4292.2,4292.1,0.004]
[1757085309618,0.792,4292.4,4292.1,0.004]
[1757085309818,0.792,4292.8,4292.1,1.5271]
[1757085310034,0.792,4292.8,4292.1,1.0953]
[1757085310035,2.32966547,4292.5,4292.1,1.0953]
[1757085310208,2.32960305,4292.6,4292.1,1.0953]
[1757085310710,2.3296527,4292.5,4292.1,1.0953]
[1757085310924,2.3296527,4292.5,4292.1,0.2906]
[1757085311212,0.792,4292.6,4292.1,0.2906]
[1757085311531,0.792,4292.7,4292.1,0.2906]
[1757085311906,0.3001,4292.2,4292.1,0.004]
[1757085312146,3.42190755,4292.2,4292.1,0.004]
[1757085312509,7.29980755,4292.2,4292.1,0.004]
[1757085313232,4.97,4292.2,4292.1,0.004]
[1757085313437,7.29980755,4292.2,4292.1,0.004]
[1757085313821,8.05570755,4292.2,4292.1,0.004]
[1757085314024,11.89270755,4292.2,4292.1,0.004]
[1757085314631,3.1219704,4291.9,4291.6,0.004]
[1757085315152,3.792,4291.7,4291.6,0.004]
[1757085315444,3.12229618,4291.3,4289.8,0.025]
[1757085315747,8.14463913,4291.3,4289.8,0.025]
[1757085315916,9.43743913,4291.3,4289.8,0.025]
[1757085316119,8.14463913,4291.3,4289.8,0.025]
[1757085316336,8.60043913,4291.3,4290.1,0.8047]
[1757085316845,12.43743913,4291.3,4291.2,1e-08]
[1757085317343,8.60043913,4291.3,4291.2,1e-08]
[1757085317948,3.96763913,4291.3,4291.2,1e-08]
[1757085318138,8.14463913,4291.3,4291.2,1e-08]
[1757085318742,7.84453913,4291.3,4291.2,1e-08]
[1757085319037,8.14463913,4291.3,4291.2,1e-08]
[1757085319252,7.84453913,4291.3,4291.2,1e-08]
[1757085319624,8.14463913,4291.3,4291.2,1e-08]
[1757085319839,7.29929618,4291.3,4291.2,1e-08]
[1757085320133,4.969,4291.3,4291.2,1e-08]
[1757085320657,8.05519618,4291.3,4291.2,1e-08]
[1757085321335,7.59939618,4291.3,4291.2,1e-08]
[1757085322348,5.2691,4291.3,4291.2,1e-08]
[1757085322671,7.59939618,4291.3,4291.2,1e-08]
[1757085323455,8.05519618,4291.3,4291.2,1e-08]
[1757085323697,11.05519618,4291.3,4291.2,1e-08]
[1757085323846,11.89219618,4291.3,4291.2,1e-08]
[1757085324365,11.89219618,4291.3,4290.8,1e-08]
[1757085324366,2.33051341,4290.9,4290.8,1e-08]
[1757085324563,10.27260985,4290.9,4290.8,1e-08]
[1757085324743,11.02850985,4290.9,4290.8,1e-08]
[1757085326972,11.09941341,4290.9,4290.8,1e-08]
[1757085327349,10.26241341,4290.9,4290.8,1e-08]
[1757085327684,10.26161341,4290.9,4290.8,1e-08]
[1757085328076,11.09861341,4290.9,4290.8,1e-08]
[1757085329760,4.176,4290.9,4290.8,0.28660001]
[1757085329960,6.50651341,4290.9,4290.8,1e-08]
[1757085330158,6.80661341,4290.9,4290.8,1e-08]
[1757085330358,7.26241341,4290.9,4290.8,1e-08]
[1757085330858,10.26241341,4290.9,4290.8,1e-08]
[1757085331069,11.09941341,4290.9,4290.8,1e-08]
[1757085331579,9.80661341,4290.9,4290.8,1e-08]
[1757085331781,10.26241341,4290.9,4290.8,1e-08]
[1757085332655,11.43395565,4290.9,4290.8,1e-08]
[1757085333272,11.09941341,4290.9,4290.8,1e-08]
[1757085333985,2.330785,4290.4,4290.3,1e-08]
[1757085334178,8.222785,4290.4,4290.3,1e-08]
[1757085334376,12.815685,4290.4,4290.3,1e-08]
[1757085334559,2.331111,4289.8,4288.7,0.8047]
[1757085334760,2.33143709,4289.2,4288.7,0.8047]
[1757085334957,10.57281809,4289.2,4288.7,0.8047]
[1757085335188,10.27271809,4289.2,4289.1,0.2906]
[1757085335359,9.50643709,4289.2,4289.1,1.0953]
[1757085335684,9.50643709,4289.2,4289.1,0.2906]
[1757085335854,9.50643709,4289.2,4289.1,0.004]
[1757085336663,9.80653709,4289.2,4289.1,0.004]
[1757085336894,9.50643709,4289.2,4289.1,0.004]
[1757085337279,9.80653709,4289.2,4289.1,0.004]
[1757085337795,11.22343709,4289.2,4289.1,0.004]
[1757085338266,11.52353709,4289.2,4289.1,0.004]